bitfinex/quotes_SOLUSD_20260213
["timestamp","ask_amount","ask_price","bid_price","bid_amount"]
[1771018687082,0.17795568,84.859,84.834,2.41237501]
[1771018689054,11.77870175,84.899,84.851,2.37488375]
[1771018689251,11.77870175,84.899,84.871,2.37488375]
[1771018689668,2.4070589,84.902,84.871,2.37488375]
[1771018691172,2.4070589,84.889,84.802,128.94576729]
[1771018691350,2.4070589,84.889,84.859,2.37488375]
[1771018691751,3.84493769,84.88,84.859,2.37488375]
[1771018692775,15.82359866,84.9,84.861,2.37488375]
[1771018692973,2.4070589,84.899,84.861,2.37488375]
[1771018693349,15.82359866,84.9,84.861,2.37488375]
[1771018693350,2.4070589,84.897,84.861,2.37488375]
[1771018695057,4.04493769,84.9,84.87,3.84493769]
[1771018695058,0.2,84.9,84.87,3.84493769]
[1771018695366,0.2,84.9,84.871,2.37488375]
[1771018701576,2.4070589,84.899,84.871,2.37488375]
[1771018702584,2.4070589,84.898,84.871,2.37488375]
[1771018702985,2.4070589,84.898,84.86,24.74]
[1771018703179,2.4070589,84.879,84.847,2.37488375]
[1771018703685,2.4070589,84.869,84.831,2.37488375]
[1771018703981,11.78161596,84.878,84.832,2.37488375]
[1771018703982,3.84493769,84.86,84.832,2.37488375]
[1771018704189,2.4070589,84.859,84.832,2.37488375]
[1771018706085,2.4070589,84.859,84.826,2.37488375]
[1771018706289,2.4070589,84.859,84.823,11.78924622]
[1771018706290,2.4070589,84.859,84.828,2.37488375]
[1771018708384,2.4070589,84.859,84.831,2.37488375]
[1771018710382,2.4070589,84.849,84.831,2.37488375]
[1771018710582,2.4070589,84.849,84.827,24.82]
[1771018710783,2.4070589,84.849,84.827,27.19488375]
[1771018711090,2.4070589,84.849,84.828,2.50147737]
[1771018712493,2.51707702,84.877,84.841,2.50147737]
[1771018713482,11.78189358,84.876,84.841,2.50147737]
[1771018713697,3.84493769,84.87,84.841,2.50147737]
[1771018715505,18.14482457,84.87,84.841,2.50147737]
[1771018717903,2.47730066,84.869,84.841,2.50147737]
[1771018718397,2.47730066,84.867,84.841,2.50147737]
[1771018720682,2.47730066,84.859,84.827,24.82]
[1771018720878,2.47730066,84.849,84.822,2.30457045]
[1771018721681,11.78328187,84.866,84.817,2.30457045]
[1771018721682,2.47730066,84.839,84.817,2.30457045]
[1771018724406,2.47730066,84.839,84.821,2.30457045]
[1771018725388,2.47730066,84.848,84.821,2.30457045]
[1771018727610,2.47730066,84.879,84.841,2.30457045]
[1771018729131,2.47730066,84.877,84.841,2.30457045]
[1771018730722,2.47730066,84.869,84.838,24.88]
[1771018731024,2.47730066,84.869,84.839,2.30457045]
[1771018732226,11.78300419,84.868,84.839,2.30457045]
[1771018732434,2.47730066,84.867,84.839,2.30457045]
[1771018739923,2.47730066,84.859,84.838,24.88]
[1771018740232,11.78439275,84.858,84.828,2.30457045]
[1771018740413,2.47730066,84.857,84.828,2.30457045]
[1771018747528,3.84457015,84.86,84.814,11.7904242]
[1771018747529,3.84457015,84.84,84.814,2.39541979]
[1771018747721,2.44514256,84.839,84.814,2.39541979]
[1771018747925,11.7846705,84.856,84.814,2.39541979]
[1771018747926,2.44514256,84.849,84.814,2.39541979]
[1771018750230,2.44514256,84.849,84.821,2.39541979]
[1771018757122,11.78567379,84.849,84.821,2.39541979]
[1771018757323,2.44514256,84.848,84.821,2.39541979]
[1771018760449,2.44514256,84.848,84.814,24.94]
[1771018760745,2.44514256,84.846,84.815,2.39541979]
[1771018764930,2.44514256,84.846,84.821,2.39541979]
[1771018767160,2.44514256,84.839,84.815,25.04]
[1771018767367,2.44514256,84.839,84.816,2.39541979]
[1771018768946,3.84457015,84.84,84.816,2.39541979]
[1771018769155,11.78574654,84.849,84.816,2.39541979]
[1771018769156,2.44514256,84.844,84.816,2.39541979]
[1771018772338,2.48174225,84.839,84.816,2.39541979]
[1771018776066,2.48174225,84.839,84.815,25.04]
[1771018776368,2.48174225,84.839,84.816,2.51753949]
[1771018776565,2.48174225,84.839,84.815,25.04]
[1771018777250,2.48174225,84.839,84.815,27.55753949]
[1771018777548,2.48174225,84.839,84.816,2.51753949]
[1771018787281,2.48174225,84.839,84.795,61.9]
[1771018787282,2.56690992,84.829,84.781,2.54591679]
[1771018787577,2.56690992,84.809,84.783,2.54591679]
[1771018787979,2.56690992,84.799,84.782,25.54]
[1771018788180,2.56690992,84.789,84.78,0.1]
[1771018791093,2.56690992,84.789,84.77,0.2]
[1771018792202,2.56690992,84.789,84.77,2.74591679]
[1771018792386,35.48,84.814,84.77,2.74591679]
[1771018792387,2.56690992,84.809,84.77,2.74591679]
[1771018792587,11.79134043,84.808,84.771,2.54591679]
[1771018792892,2.56690992,84.807,84.771,2.54591679]
[1771018798197,2.56690992,84.799,84.771,2.54591679]
[1771018798501,2.56690992,84.799,84.77,0.2]
[1771018798502,2.56690992,84.789,84.77,0.2]
[1771018799903,2.56690992,84.787,84.77,0.2]
[1771018800302,11.79347083,84.793,84.771,2.54591679]
[1771018800491,35.58,84.812,84.771,2.54591679]
[1771018800492,14.35811132,84.809,84.771,2.54591679]
[1771018800801,2.56690992,84.808,84.771,2.54591679]
[1771018802696,2.35341852,84.806,84.771,2.54591679]
[1771018803788,2.35341852,84.806,84.781,2.31240968]
[1771018804702,14.14239582,84.825,84.791,2.31240968]
[1771018804902,2.35341852,84.824,84.791,2.31240968]
[1771018805994,29.47233744,84.826,84.782,25.62]
[1771018805995,11.78925527,84.823,84.8,3.85063211]
[1771018806197,2.35341852,84.822,84.801,2.31240968]
[1771018807018,35.66,84.839,84.77,0.2]
[1771018807019,11.78872151,84.827,84.81,6.16304179]
[1771018807314,11.78872151,84.827,84.811,2.31240968]
[1771018807715,3.85063211,84.84,84.793,25.62]
[1771018807716,2.35341852,84.845,84.82,3.85063211]
[1771018807917,2.35341852,84.845,84.817,2.31240968]
[1771018808086,2.35341852,84.843,84.817,2.31240968]
[1771018810696,2.35341852,84.841,84.817,2.31240968]
[1771018811787,2.35341852,84.839,84.801,24.62]
[1771018813008,2.35341852,84.839,84.779,11.79530958]
[1771018813009,2.35341852,84.829,84.793,2.31240968]
[1771018813193,2.35341852,84.827,84.793,2.31240968]
[1771018817411,2.35341852,84.825,84.793,2.31240968]
[1771018818497,11.78911628,84.824,84.793,2.31240968]
[1771018818696,2.35341852,84.823,84.793,2.31240968]
[1771018819824,2.35341852,84.839,84.811,2.31240968]
[1771018821630,11.78689297,84.84,84.811,2.31240968]
[1771018822001,11.78638732,84.844,84.821,2.31240968]
[1771018823012,14.13906125,84.849,84.821,2.31240968]
[1771018823403,14.13906125,84.849,84.802,25.54]
[1771018823404,2.35341852,84.858,84.831,2.31240968]
[1771018825214,2.35341852,84.849,84.815,2.31240968]
[1771018829326,2.35341852,84.847,84.815,2.31240968]
[1771018831728,2.23286868,84.845,84.815,2.31240968]
[1771018834232,2.23286868,84.843,84.815,2.31240968]
[1771018840132,2.41829666,84.841,84.815,2.31240968]
[1771018861144,11.78615517,84.846,84.821,2.14803996]
[1771018861852,14.10664959,84.846,84.821,2.14803996]
[1771018862030,2.32049442,84.845,84.821,2.14803996]
[1771018862337,36.16,84.854,84.821,2.14803996]
[1771018862338,11.78633727,84.844,84.821,2.14803996]
[1771018862545,2.32049442,84.843,84.821,2.14803996]
[1771018862741,11.78633727,84.844,84.811,2.14803996]
[1771018862742,2.3137846,84.839,84.811,2.14803996]
[1771018863528,2.3137846,84.839,84.777,61.9]
[1771018863529,2.3137846,84.829,84.801,2.14803996]
[1771018864357,3.84673478,84.82,84.794,2.14803996]
[1771018864657,2.30714729,84.819,84.791,25.8]
[1771018864834,2.30714729,84.819,84.791,27.94803996]
[1771018866157,2.30714729,84.819,84.792,2.14803996]
[1771018868455,2.2813444,84.824,84.801,2.14803996]
[1771018868634,36.22,84.837,84.801,2.14803996]
[1771018868635,2.2813444,84.829,84.801,2.14803996]
[1771018873540,2.25073681,84.835,84.801,2.14803996]
[1771018873755,2.25073681,84.835,84.795,25.8]
[1771018873756,2.25073681,84.835,84.811,2.14803996]
[1771018875450,2.23898713,84.846,84.811,2.14803996]
[1771018875654,2.23898713,84.846,84.82,3.84673478]
[1771018875849,2.23898713,84.846,84.821,2.14803996]
[1771018876158,2.23898713,84.846,84.84,3.84673478]
[1771018876346,11.78506649,84.854,84.84,3.84673478]
[1771018876551,2.23321232,84.853,84.84,3.84673478]
[1771018881058,2.20529042,84.851,84.84,3.84673478]
[1771018882755,2.19457367,84.849,84.84,3.84673478]
[1771018894683,11.78540388,84.851,84.84,3.84673478]
[1771018896378,36.7,84.85,84.84,3.84673478]
[1771018896779,36.7,84.85,84.841,2.17826634]
[1771018897171,11.78564273,84.849,84.841,2.17826634]
[1771018898489,36.82,84.848,84.841,2.17826634]
[1771018902690,36.82,84.848,84.84,3.84673478]
[1771018906696,36.82,84.848,84.839,1.99715197]
[1771018909602,37.12,84.862,84.841,1.99715197]
[1771018909783,32.75443096,84.862,84.851,1.99715197]
[1771018909977,30.4480362,84.862,84.85,3.84673478]
[1771018913507,37.14,84.872,84.85,3.84673478]
[1771018913708,39.33619736,84.872,84.85,3.84673478]
[1771018914112,37.16,84.876,84.86,3.84673478]
[1771018914306,37.16,84.876,84.87,3.84673478]
[1771018914905,37.16,84.876,84.87,3.84264306]
[1771018915197,37.16,84.876,84.86,3.84264306]
[1771018915400,2.19619736,84.875,84.86,3.84264306]
[1771018923489,39.47619736,84.875,84.86,3.84264306]
[1771018924888,39.454747,84.875,84.86,3.84264306]
[1771018925191,2.174747,84.874,84.86,3.84264306]
[1771018927816,37.28,84.875,84.86,3.84264306]
[1771018928698,2.174747,84.895,84.87,3.84264306]
[1771018928902,0.2,84.9,84.87,3.84264306]
[1771018928903,39.514747,84.894,84.87,3.84264306]
[1771018931597,51.29418676,84.894,84.87,3.84264306]
[1771018931798,11.77967299,84.892,84.87,3.84264306]
[1771018932619,11.77967299,84.892,84.88,3.84264306]
[1771018932802,13.95441999,84.892,84.88,3.84264306]
[1771018932999,13.95441999,84.892,84.87,3.84264306]
[1771018933223,2.174747,84.891,84.86,3.84264306]
[1771018933524,2.174747,84.891,84.84,3.84264306]
[1771018933525,2.174747,84.891,84.87,3.84264306]
[1771018934497,2.174747,84.889,84.86,3.84264306]
[1771018938325,2.174747,84.889,84.87,3.84264306]
[1771018938908,11.78022806,84.888,84.87,3.84264306]
[1771018939126,2.174747,84.887,84.86,3.84264306]
[1771018942222,2.174747,84.887,84.87,3.84264306]
[1771018942725,37.46,84.89,84.87,3.84264306]
[1771018943509,2.174747,84.889,84.87,3.84264306]
[1771018945529,2.174747,84.888,84.87,3.84264306]
[1771018947517,2.174747,84.888,84.86,3.84264306]
[1771018949940,2.174747,84.888,84.87,3.84264306]
[1771018951135,2.174747,84.886,84.86,3.84264306]
[1771018965342,2.174747,84.884,84.847,25.16]
[1771018965548,2.174747,84.884,84.85,3.84264306]
[1771018968530,2.174747,84.882,84.85,3.84264306]
[1771018969931,2.174747,84.88,84.85,3.84264306]
[1771018970332,2.174747,84.88,84.84,3.84264306]
[1771018970544,2.174747,84.88,84.85,3.84264306]
[1771018971240,2.174747,84.878,84.84,3.84264306]
[1771018971553,11.78147716,84.879,84.836,25.36]
[1771018971554,2.174747,84.869,84.836,25.36]
[1771018971751,2.174747,84.869,84.83,3.84264306]
[1771018972141,2.174747,84.869,84.807,29.47838409]
[1771018972142,2.174747,84.869,84.84,3.84264306]
[1771018973351,2.174747,84.869,84.85,3.84264306]
[1771018976832,2.174747,84.869,84.85,3.84369108]
[1771018980257,2.174747,84.875,84.85,3.84369108]
[1771018981048,2.174747,84.875,84.86,3.84369108]
[1771018981246,2.174747,84.883,84.86,3.84369108]
[1771018981443,2.174747,84.883,84.84,3.84369108]
[1771018981444,2.174747,84.893,84.87,3.84369108]
[1771018982062,2.174747,84.893,84.844,25.34]
[1771018982264,2.174747,84.897,84.88,3.84369108]
[1771018983056,0.2,84.9,84.89,3.84369108]
[1771018984279,0.2,84.91,84.89,3.84369108]
[1771018984442,0.2,84.91,84.88,3.84369108]
[1771018984443,0.2,84.91,84.9,3.84369108]
[1771018984850,2.174747,84.909,84.88,3.84369108]
[1771018985060,2.174747,84.909,84.89,3.84369108]
[1771018988343,3.84369108,84.9,84.795,109.07257308]
[1771018988541,0.2,84.91,84.86,3.84369108]
[1771018988542,2.14934821,84.889,84.86,3.84369108]
[1771018989166,2.14934821,84.889,84.851,1.99409557]
[1771018989747,2.14934821,84.889,84.86,3.84369108]
[1771018990058,2.14934821,84.889,84.861,1.99409557]
[1771018991264,2.14934821,84.887,84.861,1.99409557]
[1771018991466,2.14934821,84.887,84.86,3.84369108]
[1771018993458,11.78050561,84.886,84.86,3.84369108]
[1771018993651,2.14934821,84.885,84.86,3.84369108]
[1771018994969,11.78078318,84.884,84.854,1.99409557]
[1771018995174,2.14934821,84.883,84.854,1.99409557]
[1771018996772,2.14934821,84.879,84.835,1.99409557]
[1771018996967,2.14934821,84.879,84.84,5.83778665]
[1771018997274,2.14934821,84.879,84.841,1.99409557]
[1771018999175,2.14934821,84.869,84.831,1.99409557]
[1771019001376,2.14934821,84.873,84.841,1.99409557]
[1771019003985,2.14934821,84.873,84.815,25.16]
[1771019003986,2.14934821,84.869,84.836,1.99409557]
[1771019004167,2.14934821,84.869,84.831,1.99409557]
[1771019004973,2.14934821,84.859,84.821,1.99409557]
[1771019005271,2.14934821,84.857,84.821,1.99409557]
[1771019006173,2.14934821,84.855,84.821,1.99409557]
[1771019007274,2.14934821,84.849,84.821,1.99409557]
[1771019007575,2.14934821,84.839,84.806,1.99409557]
[1771019008280,2.14934821,84.837,84.806,1.99409557]
[1771019008664,2.14934821,84.837,84.8,3.84369108]
[1771019008665,2.14934821,84.837,84.801,1.99409557]
[1771019010177,2.14934821,84.835,84.801,1.99409557]
[1771019012578,38.2,84.838,84.801,1.99409557]
[1771019012579,2.15450434,84.833,84.801,1.99409557]
[1771019017695,2.15450434,84.833,84.78,36.79511764]
[1771019017696,3.84369108,84.82,84.797,2.13188083]
[1771019017874,2.17148655,84.819,84.781,2.13188083]
[1771019023196,2.17148655,84.809,84.781,2.13188083]
[1771019023379,2.17148655,84.809,84.771,2.13188083]
[1771019023776,2.17148655,84.799,84.77,0.2]
[1771019024391,2.17148655,84.798,84.77,0.2]
[1771019025173,3.84369108,84.8,84.771,2.13188083]
[1771019025378,2.17148655,84.809,84.781,2.13188083]
[1771019027377,2.17148655,84.814,84.791,2.13188083]
[1771019027682,2.17148655,84.819,84.791,2.13188083]
[1771019028396,11.78995024,84.818,84.791,2.13188083]
[1771019028600,2.17148655,84.817,84.791,2.13188083]
[1771019032899,29.47178124,84.827,84.791,2.13188083]
[1771019032900,2.17148655,84.826,84.791,2.13188083]
[1771019036216,2.17148655,84.824,84.791,2.13188083]
[1771019040511,2.17148655,84.822,84.791,2.13188083]
[1771019043091,2.21267914,84.82,84.791,2.13188083]
[1771019043597,2.21267914,84.819,84.781,2.03758928]
[1771019045323,2.21267914,84.817,84.791,2.03758928]
[1771019048622,2.21267914,84.815,84.791,2.03758928]
[1771019051323,3.84893321,84.82,84.791,2.03758928]
[1771019051324,2.21267914,84.813,84.791,2.03758928]
[1771019053628,38.98,84.822,84.801,2.03758928]
[1771019053807,41.19267914,84.822,84.801,2.03758928]
[1771019054124,2.21267914,84.821,84.801,2.03758928]
[1771019071033,2.21267914,84.821,84.77,0.2]
[1771019071034,2.12897551,84.819,84.771,2.13697955]
[1771019071335,45.11278606,84.82,84.771,2.13697955]
[1771019071336,41.78897551,84.823,84.801,2.13697955]
[1771019071542,2.12897551,84.822,84.801,2.13697955]
[1771019074441,2.12897551,84.821,84.801,2.13697955]
[1771019075935,2.12897551,84.819,84.801,2.13697955]
[1771019077833,2.12897551,84.819,84.791,2.03550043]
[1771019079642,2.11658029,84.817,84.791,2.03550043]
[1771019080518,2.11658029,84.822,84.791,2.03550043]
[1771019084124,2.11658029,84.82,84.791,2.03550043]
[1771019084635,39.66,84.823,84.801,2.03550043]
[1771019085226,2.11658029,84.827,84.801,2.03550043]
[1771019085440,2.11658029,84.855,84.821,2.03550043]
[1771019085647,2.11658029,84.843,84.821,2.03550043]
[1771019086227,2.11658029,84.842,84.821,2.03550043]
[1771019095754,52.56628496,84.845,84.821,2.03550043]
[1771019096130,54.68286525,84.845,84.821,2.03550043]
[1771019096350,2.11658029,84.844,84.821,2.03550043]
[1771019098145,70.60672537,84.978,84.8,3.84893321]
[1771019098146,103.5,84.883,84.831,2.03550043]
[1771019098359,41.46,84.872,84.841,2.03550043]
[1771019098538,41.46,84.872,84.851,2.03550043]
[1771019099232,3.84893321,84.89,84.851,2.03550043]
[1771019099555,41.46,84.889,84.851,2.03550043]
[1771019099737,41.46,84.889,84.861,2.03550043]
[1771019099738,11.78008929,84.889,84.861,2.03550043]
[1771019099940,41.44,84.888,84.861,2.03550043]
[1771019100256,2.11658029,84.887,84.861,2.03550043]
[1771019101736,2.13573225,84.885,84.861,2.03550043]
[1771019102149,2.13573225,84.885,84.855,2.18501872]
[1771019102561,2.13573225,84.869,84.837,2.18501872]
[1771019102759,41.23176965,84.886,84.82,3.84346079]
[1771019102760,2.13573225,84.859,84.82,3.84346079]
[1771019102959,2.13573225,84.857,84.821,2.18501872]
[1771019103140,2.13573225,84.857,84.84,3.84346079]
[1771019103340,41.48,84.86,84.841,2.18501872]
[1771019103552,41.46,84.86,84.841,2.18501872]
[1771019103760,2.13573225,84.859,84.841,2.18501872]
[1771019104068,2.13573225,84.858,84.841,2.18501872]
[1771019104352,2.13573225,84.858,84.831,2.18501872]
[1771019106455,2.13573225,84.856,84.821,2.18501872]
[1771019107460,2.13573225,84.856,84.831,2.18501872]
[1771019110156,11.78480938,84.855,84.831,2.18501872]
[1771019110362,2.13573225,84.854,84.831,2.18501872]
[1771019118651,2.13573225,84.852,84.825,2.18501872]
[1771019119371,3.84346079,84.85,84.814,2.18501872]
[1771019119570,2.13573225,84.849,84.814,2.18501872]
[1771019120478,2.13573225,84.847,84.821,2.18501872]
[1771019121870,2.13573225,84.829,84.8,3.84346079]
[1771019122070,2.13573225,84.829,84.8,6.02847951]
[1771019122269,2.13573225,84.829,84.801,2.18501872]
[1771019123868,2.13573225,84.827,84.801,2.18501872]
[1771019125588,2.13573225,84.819,84.786,2.18501872]
[1771019125879,2.13573225,84.817,84.786,2.18501872]
[1771019126455,2.13573225,84.815,84.786,2.18501872]
[1771019126658,2.13573225,84.815,84.791,2.18501872]
[1771019128771,2.13573225,84.813,84.791,2.18501872]
[1771019132163,2.13573225,84.813,84.781,2.17003704]
[1771019132360,2.09441925,84.812,84.78,3.84346079]
[1771019132667,2.09441925,84.809,84.771,2.17003704]
[1771019133555,2.09441925,84.799,84.771,2.17003704]
[1771019133755,41.84,84.798,84.771,2.17003704]
[1771019133984,2.09441925,84.797,84.771,2.17003704]
[1771019134184,2.09441925,84.797,84.77,0.2]
[1771019135181,2.09441925,84.795,84.77,0.2]
[1771019135589,2.09441925,84.793,84.77,2.37003704]
[1771019135772,2.09441925,84.793,84.771,2.17003704]
[1771019136277,2.09441925,84.793,84.77,4.04346079]
[1771019136278,2.09441925,84.805,84.781,2.17003704]
[1771019139969,2.17415284,84.803,84.781,2.17003704]
[1771019140280,2.17415284,84.803,84.771,2.12253722]
[1771019140281,2.17415284,84.8,84.771,2.12253722]
[1771019141261,41.96,84.799,84.771,2.12253722]
[1771019141465,2.17415284,84.798,84.771,2.12253722]
[1771019142475,11.79231376,84.801,84.771,2.12253722]
[1771019142476,2.17415284,84.796,84.771,2.12253722]
[1771019144671,2.17415284,84.794,84.771,2.12253722]
[1771019144889,2.17415284,84.789,84.77,0.2]
[1771019145287,11.79314818,84.795,84.76,0.1]
[1771019145288,2.17415284,84.779,84.76,0.1]
[1771019146592,2.17415284,84.777,84.76,0.1]
[1771019149895,42.04,84.786,84.761,2.12253722]
[1771019150193,2.17415284,84.785,84.761,2.12253722]
[1771019151294,2.17415284,84.783,84.761,2.12253722]
[1771019151491,2.17415284,84.783,84.76,0.1]
[1771019151698,2.17415284,84.779,84.76,0.1]
[1771019152074,11.79467824,84.784,84.76,2.22253722]
[1771019152386,13.96883108,84.784,84.76,2.22253722]
[1771019152892,2.17415284,84.783,84.76,2.22253722]
[1771019153189,2.17415284,84.783,84.761,2.12253722]
[1771019153394,42.04,84.786,84.761,2.12253722]
[1771019153593,44.21415284,84.786,84.761,2.12253722]
[1771019153789,2.17415284,84.779,84.76,0.1]
[1771019154098,2.17415284,84.769,84.75,0.2]
[1771019154396,2.17415284,84.767,84.75,0.2]
[1771019159405,2.17415284,84.765,84.75,0.2]
[1771019165099,2.20580333,84.763,84.75,0.2]
[1771019170090,2.20580333,84.761,84.75,0.2]
[1771019170302,2.20580333,84.759,84.731,2.22304708]
[1771019171191,11.79829632,84.758,84.73,0.1]
[1771019171509,2.20580333,84.757,84.73,0.1]
[1771019171806,2.20580333,84.757,84.73,2.32304708]
[1771019173407,2.20580333,84.757,84.731,2.22304708]
[1771019174114,42.6,84.761,84.731,2.22304708]
[1771019174319,14.00360695,84.762,84.73,3.95433728]
[1771019174320,42.66,84.76,84.741,2.22304708]
[1771019175897,54.496487,84.771,84.741,2.22304708]
[1771019177109,14.00256865,84.769,84.741,2.22304708]
[1771019177510,2.20580333,84.768,84.741,2.22304708]
[1771019177906,2.20580333,84.78,84.751,2.22304708]
[1771019178110,2.20580333,84.78,84.73,0.1]
[1771019178111,2.20580333,84.778,84.744,2.22304708]
[1771019178310,2.20580333,84.769,84.744,2.22304708]
[1771019181219,2.20580333,84.774,84.744,2.22304708]
[1771019182418,11.79551298,84.778,84.744,2.22304708]
[1771019182604,11.79551298,84.778,84.751,2.22304708]
[1771019184221,2.20580333,84.785,84.751,2.22304708]
[1771019184423,11.79449243,84.786,84.761,2.22304708]
[1771019185126,2.20580333,84.785,84.761,2.22304708]
[1771019189109,2.20580333,84.783,84.761,2.22304708]
[1771019189512,2.20580333,84.783,84.732,23.54]
[1771019189513,2.20580333,84.781,84.751,2.22304708]
[1771019189717,2.20580333,84.779,84.741,2.22304708]
[1771019191729,2.09933346,84.777,84.741,2.22304708]
[1771019192029,2.09933346,84.769,84.741,2.22304708]
[1771019192232,2.09933346,84.768,84.741,2.22304708]
[1771019193032,1.55623403,84.768,84.742,2.23815336]
[1771019203337,2.23770823,84.766,84.742,2.23815336]
[1771019203524,43.5,84.765,84.731,2.30607143]
[1771019203722,2.23770823,84.764,84.731,2.30607143]
[1771019204418,2.23770823,84.759,84.731,2.30607143]
[1771019206633,11.79829632,84.758,84.731,2.30607143]
[1771019209145,2.23770823,84.757,84.731,2.30607143]
[1771019210726,2.23770823,84.755,84.731,2.30607143]
[1771019211838,2.23770823,84.759,84.731,2.30607143]
[1771019212024,29.48919998,84.777,84.73,3.95433728]
[1771019212025,2.23770823,84.769,84.751,2.30607143]
[1771019212226,2.23770823,84.769,84.731,2.30607143]
[1771019212453,2.23770823,84.769,84.741,2.30607143]
[1771019215449,2.23770823,84.767,84.741,2.30607143]
[1771019221547,11.79718283,84.766,84.741,2.30607143]
[1771019221741,2.2017506,84.765,84.741,2.30607143]
[1771019222248,2.2017506,84.765,84.73,0.1]
[1771019222458,2.2017506,84.759,84.73,0.1]
[1771019223050,2.2017506,84.759,84.73,2.28772991]
[1771019223549,2.2017506,84.757,84.73,2.28772991]
[1771019225064,2.2017506,84.755,84.73,2.28772991]
[1771019225567,2.2017506,84.755,84.72,3.95553297]
[1771019225568,2.2017506,84.739,84.72,2.28772991]
[1771019226958,2.2017506,84.739,84.71,3.95553297]
[1771019226959,2.2017506,84.729,84.71,0.1]
[1771019228247,2.2017506,84.727,84.71,0.1]
[1771019231154,2.2017506,84.725,84.71,0.1]
[1771019232072,2.2017506,84.719,84.686,2.18772991]
[1771019232246,2.2017506,84.709,84.686,2.18772991]
[1771019237079,2.2017506,84.707,84.686,2.18772991]
[1771019237463,2.2017506,84.699,84.681,2.18772991]
[1771019238180,2.2017506,84.704,84.686,2.18772991]
[1771019238774,3.85553297,84.72,84.686,2.18772991]
[1771019238975,55.60372761,84.719,84.686,2.18772991]
[1771019239169,2.2017506,84.718,84.686,2.18772991]
[1771019240582,2.2017506,84.716,84.686,2.18772991]
[1771019247681,14.14617871,84.727,84.691,2.23578326]
[1771019248192,29.50244926,84.739,84.701,2.23578326]
[1771019248193,2.34343331,84.739,84.701,2.23578326]
[1771019248980,2.34343331,84.738,84.701,2.23578326]
[1771019249183,2.34343331,84.758,84.711,2.23578326]
[1771019249372,2.34343331,84.757,84.721,2.23578326]
[1771019249770,2.34343331,84.757,84.697,21.96]
[1771019249771,11.79857473,84.756,84.731,2.23578326]
[1771019252566,2.28032164,84.756,84.731,2.23578326]
[1771019253780,2.28032164,84.761,84.731,2.23578326]
[1771019253965,2.28032164,84.766,84.741,2.12912859]
[1771019256490,11.797322,84.765,84.741,2.12912859]
[1771019256692,2.28032164,84.764,84.741,2.12912859]
[1771019256870,2.28032164,84.764,84.731,2.12912859]
[1771019257383,2.28032164,84.762,84.731,2.12912859]
[1771019260083,2.19853551,84.76,84.731,2.12912859]
[1771019264790,29.49330501,84.765,84.731,2.12912859]
[1771019264791,2.19853551,84.758,84.731,2.12912859]
[1771019266791,11.79843552,84.757,84.731,2.12912859]
[1771019267085,2.19853551,84.749,84.711,2.18785881]
[1771019267394,2.19853551,84.747,84.711,2.18785881]
[1771019267577,3.85553297,84.74,84.711,2.18785881]
[1771019267779,2.19853551,84.739,84.711,2.18785881]
[1771019268170,2.19853551,84.737,84.711,2.18785881]
[1771019269072,2.19853551,84.735,84.701,2.18785881]
[1771019271289,2.19853551,84.733,84.701,2.18785881]
[1771019272487,2.19853551,84.729,84.701,2.18785881]
[1771019274287,2.19853551,84.729,84.69,3.85553297]
[1771019274476,2.19853551,84.719,84.691,2.18785881]
[1771019274793,2.19853551,84.717,84.691,2.18785881]
[1771019277501,2.19853551,84.709,84.68,2.18785881]
[1771019277712,2.19853551,84.709,84.686,2.18785881]
[1771019277917,2.19853551,84.709,84.67,3.95553297]
[1771019277918,2.19853551,84.72,84.691,2.18785881]
[1771019278602,2.19853551,84.719,84.691,2.18785881]
[1771019279487,11.80372761,84.719,84.691,2.18785881]
[1771019279703,11.80400627,84.717,84.691,2.18785881]
[1771019279898,2.19853551,84.716,84.691,2.18785881]
[1771019280801,2.19853551,84.709,84.691,2.18785881]
[1771019282007,2.22056738,84.708,84.691,2.18785881]
[1771019285410,2.22056738,84.718,84.691,2.18785881]
[1771019285598,11.80384351,84.719,84.691,2.18785881]
[1771019286509,2.22056738,84.722,84.691,2.18785881]
[1771019287400,2.22056738,84.726,84.691,2.18785881]
[1771019288221,2.22056738,84.726,84.701,2.31951688]
[1771019288416,2.22056738,84.731,84.701,2.31951688]
[1771019288597,11.8021952,84.73,84.701,2.31951688]
[1771019289000,14.02276258,84.73,84.701,2.31951688]
[1771019292413,11.80131596,84.737,84.701,2.31951688]
[1771019292615,2.22056738,84.736,84.701,2.31951688]
[1771019292815,2.22056738,84.736,84.711,2.31951688]
[1771019293322,2.22056738,84.736,84.68,3.85822492]
[1771019293323,44.52,84.746,84.721,2.31951688]
[1771019293819,46.74056738,84.746,84.721,2.31951688]
[1771019294201,2.22056738,84.745,84.721,2.31951688]
[1771019296217,2.22056738,84.743,84.721,2.31951688]
[1771019299106,2.22056738,84.753,84.721,2.31951688]